bitfinex-derivatives/quotes_ETHF0:USTF0_20260305
["timestamp","ask_amount","ask_price","bid_price","bid_amount"]
[1772670240286,0.54651072,2133.9,2133.1,0.23436]
[1772670241081,0.54651072,2133.9,2133.0,0.5496305]
[1772670244088,0.54651072,2133.9,2132.9,0.00332762]
[1772670244289,0.54651072,2133.9,2132.4,6.33554972]
[1772670244485,0.58536481,2133.7,2132.4,0.5496305]
[1772670245086,0.58536481,2133.7,2132.2,6.33554972]
[1772670245288,0.58536481,2133.7,2132.2,0.5496305]
[1772670245790,0.58536481,2133.7,2132.2,0.5534654]
[1772670246289,0.58536481,2133.5,2132.2,0.0038349]
[1772670246485,0.58536481,2133.4,2132.2,0.0038349]
[1772670246992,0.58536481,2133.4,2132.2,0.5534654]
[1772670247394,0.58536481,2133.4,2132.2,0.0038349]
[1772670248191,0.58536481,2133.2,2132.2,0.0038349]
[1772670249198,0.58536481,2133.2,2132.3,0.5496305]
[1772670250394,0.58536481,2133.2,2132.0,8.69181874]
[1772670250395,0.58536481,2133.2,2132.0,5.78591922]
[1772670250601,0.58536481,2133.0,2131.6,0.5496305]
[1772670250901,0.58536481,2132.8,2131.6,0.5496305]
[1772670251790,0.58536481,2132.8,2131.6,0.55371915]
[1772670254799,0.58536481,2132.8,2131.2,0.5496305]
[1772670255000,0.58536481,2132.6,2131.2,0.5496305]
[1772670255399,0.58536481,2132.6,2131.4,0.5496305]
[1772670256095,0.58536481,2132.6,2131.4,0.00399665]
[1772670256401,0.58536481,2132.6,2131.4,0.55362715]
[1772670256901,0.58536481,2132.6,2131.4,0.00399665]
[1772670260004,0.58536481,2132.6,2131.4,0.54972745]
[1772670261306,0.58536481,2132.6,2131.4,0.00399665]
[1772670263603,0.58536481,2132.6,2131.4,0.54972745]
[1772670263802,0.58536481,2132.6,2131.4,0.00399665]
[1772670265005,0.58536481,2132.6,2131.4,0.54972745]
[1772670265905,0.58536481,2132.6,2131.4,0.00399665]
[1772670266605,0.58536481,2132.6,2131.0,0.56844351]
[1772670266807,0.54223649,2132.4,2130.9,0.56844351]
[1772670267002,0.54223649,2132.4,2130.4,8.45734874]
[1772670267003,0.54223649,2132.2,2130.7,0.56844351]
[1772670267201,0.54223649,2132.2,2130.3,0.56844351]
[1772670267202,0.54223649,2131.8,2130.3,0.56844351]
[1772670267405,0.54223649,2131.6,2130.3,0.56844351]
[1772670267610,0.54765441,2131.6,2130.3,0.57280026]
[1772670273112,0.54765441,2131.6,2130.5,0.56844351]
[1772670273514,0.54765441,2131.6,2130.7,0.56844351]
[1772670274008,0.54765441,2131.6,2130.9,0.56844351]
[1772670274605,0.54223649,2131.9,2131.1,0.56844351]
[1772670275009,0.54223649,2132.4,2131.1,0.56844351]
[1772670275205,0.54223649,2132.3,2130.9,0.56844351]
[1772670275611,0.54735963,2132.3,2130.9,0.56844351]
[1772670276206,0.54735963,2132.3,2131.0,0.56844351]
[1772670276807,0.54735963,2132.3,2130.6,0.56844351]
[1772670277412,0.54223649,2132.1,2130.6,0.56844351]
[1772670282523,0.54223649,2132.1,2130.8,0.56844351]
[1772670282717,0.54223649,2132.1,2130.9,0.56844351]
[1772670284020,0.54223649,2132.0,2130.7,0.80306351]
[1772670284221,0.54223649,2132.0,2130.8,0.56844351]
[1772670287722,0.40680499,2131.9,2130.8,0.56844351]
[1772670287924,7.082,2131.8,2130.8,0.56844351]
[1772670288132,0.54223649,2131.7,2130.8,0.56844351]
[1772670288926,0.54223649,2131.7,2131.0,0.52023643]
[1772670289629,11.00435382,2132.1,2131.0,0.52023643]
[1772670289630,0.55089599,2132.0,2131.0,0.52023643]
[1772670292229,0.55089599,2131.9,2131.0,0.52023643]
[1772670293824,3.92638486,2132.0,2131.2,0.52023643]
[1772670294029,0.55089599,2132.0,2131.2,0.52023643]
[1772670294425,0.55089599,2132.0,2131.1,0.23458]
[1772670294626,0.55089599,2132.0,2131.2,0.52023643]
[1772670296131,3.92638486,2132.1,2131.2,0.52023643]
[1772670296327,0.55601913,2132.3,2131.7,0.52023643]
[1772670297424,7.086,2132.6,2131.1,7.16088151]
[1772670297425,0.55089599,2133.0,2132.3,0.52023643]
[1772670298036,0.55089599,2133.0,2132.1,0.52023643]
[1772670298427,0.55089599,2133.0,2132.1,0.52438588]
[1772670298428,0.55614732,2133.0,2132.1,0.52438588]
[1772670300728,0.55614732,2133.0,2132.1,0.00414945]
[1772670301134,0.55614732,2133.0,2131.7,0.52023643]
[1772670301525,0.55089599,2132.7,2131.5,0.52023643]
[1772670301728,0.55089599,2132.5,2131.5,0.52023643]
[1772670302233,0.55089599,2132.5,2131.5,0.52519867]
[1772670304328,0.55089599,2132.7,2131.6,0.52023643]
[1772670304539,0.55089599,2132.9,2132.2,0.52023643]
[1772670304737,0.55089599,2132.9,2132.0,0.52023643]
[1772670308439,0.55089599,2132.9,2131.8,0.52023643]
[1772670309231,0.55089599,2132.8,2131.6,0.52023643]
[1772670314237,0.55089599,2132.6,2131.5,0.00496224]
[1772670314445,0.55089599,2132.4,2131.5,0.00496224]
[1772670316747,0.55089599,2132.3,2131.2,0.52023643]
[1772670316944,0.55089599,2132.3,2131.0,0.52023643]
[1772670317847,0.55089599,2132.3,2131.0,0.52633576]
[1772670318742,0.52354959,2132.1,2131.0,0.52633576]
[1772670319448,3.19860016,2132.1,2131.0,0.52633576]
[1772670319647,0.52354959,2131.9,2131.0,0.00609933]
[1772670319849,0.52354959,2131.7,2131.0,0.00609933]
[1772670320544,0.52354959,2131.7,2131.0,0.54594036]
[1772670322252,0.52354959,2131.7,2131.0,0.00609933]
[1772670328158,0.5523085,2131.4,2130.1,0.59920254]
[1772670328356,0.5523085,2131.2,2130.1,0.59920254]
[1772670328964,0.55598561,2131.2,2130.1,0.60412496]
[1772670332163,0.5523085,2131.1,2130.1,0.60412496]
[1772670332663,0.00367711,2131.2,2130.3,0.59920254]
[1772670332863,0.55598561,2131.2,2130.3,0.59920254]
[1772670333662,0.55598561,2131.2,2130.1,0.60412496]
[1772670337868,0.5523085,2131.1,2130.1,0.00492242]
[1772670339665,0.5523085,2131.1,2130.1,0.60412496]
[1772670341170,0.5523085,2131.1,2130.1,0.00492242]
[1772670341869,0.5523085,2131.1,2130.1,0.60412496]
[1772670345173,0.5523085,2131.1,2130.1,0.00492242]
[1772670345375,0.5523085,2131.1,2130.1,0.60412496]
[1772670346268,0.5523085,2131.0,2130.1,0.60412496]
[1772670350573,0.5523085,2131.0,2130.1,0.00492242]
[1772670350779,0.54905324,2130.8,2130.1,0.00492242]
[1772670351077,0.54905324,2130.6,2130.1,0.00492242]
[1772670351479,0.54905324,2130.6,2129.3,7.39566151]
[1772670351480,0.54905324,2130.6,2129.5,0.56356035]
[1772670351876,0.54905324,2130.6,2129.3,0.56356035]
[1772670352178,0.54905324,2130.3,2129.2,0.56356035]
[1772670352478,0.54905324,2130.1,2129.2,0.56750373]
[1772670353577,7.138,2130.2,2129.2,0.56750373]
[1772670353780,7.68705324,2130.2,2129.2,0.56750373]
[1772670353977,0.54905324,2130.1,2129.2,0.56750373]
[1772670354369,5.90585301,2130.6,2129.2,0.23873338]
[1772670354370,3.92638486,2130.5,2129.2,0.23873338]
[1772670354571,0.54905324,2130.5,2129.5,0.56356035]
[1772670355376,7.145,2130.6,2129.5,0.56356035]
[1772670355577,7.69405324,2130.6,2129.5,0.56356035]
[1772670357074,0.54905324,2130.5,2129.5,0.56356035]
[1772670361085,7.145,2130.6,2129.7,0.56356035]
[1772670361286,0.54905324,2130.9,2129.9,0.56356035]
[1772670362784,0.54905324,2130.7,2129.9,0.56356035]
[1772670366189,0.54905324,2130.4,2129.3,0.56356035]
[1772670366392,0.54905324,2130.2,2129.3,0.56356035]
[1772670366880,0.54905324,2130.2,2129.0,6.34947957]
[1772670367083,0.54905324,2130.2,2129.0,0.56356035]
[1772670367084,0.54905324,2130.0,2129.0,0.56356035]
[1772670368191,0.54905324,2129.8,2128.8,0.56356035]
[1772670368483,3.92638486,2130.0,2128.8,0.56356035]
[1772670368484,0.54905324,2129.6,2128.8,0.56356035]
[1772670368892,0.54905324,2129.6,2128.6,0.56356035]
[1772670369090,0.55287514,2129.6,2128.6,0.56963226]
[1772670370992,0.55287514,2129.6,2128.2,0.56356035]
[1772670371189,0.54905324,2129.3,2128.2,0.56356035]
[1772670371986,0.54905324,2129.3,2128.2,0.56804279]
[1772670379694,0.54905324,2129.3,2128.2,0.00448244]
[1772670379896,0.54905324,2129.3,2127.8,0.57448265]
[1772670380696,0.54905324,2129.3,2127.9,0.57448265]
[1772670380894,0.54905324,2129.3,2127.9,0.57908442]
[1772670385196,0.54905324,2129.3,2128.1,0.57448265]
[1772670385998,0.54905324,2129.3,2128.3,0.57448265]
[1772670386701,0.54905324,2129.3,2127.9,0.56343819]
[1772670387302,2.67770458,2129.1,2127.9,0.00460177]
[1772670387506,2.67770458,2129.1,2127.4,0.55883642]
[1772670387507,0.54308324,2128.8,2127.4,0.55883642]
[1772670387698,0.54308324,2128.6,2126.8,0.55883642]
[1772670388101,13.77408944,2128.7,2126.8,0.55883642]
[1772670388102,0.54308324,2128.2,2126.8,0.55883642]
[1772670388407,0.54308324,2128.1,2126.8,0.00347284]
[1772670388600,0.54308324,2127.8,2126.4,0.55883642]
[1772670388801,0.54308324,2127.0,2125.7,0.55883642]
[1772670389001,0.54308324,2126.8,2125.7,0.55883642]
[1772670389199,0.54308324,2127.3,2126.1,0.55883642]
[1772670389598,0.54308324,2127.3,2126.1,0.56406883]
[1772670390205,0.54308324,2127.3,2126.3,0.55883642]
[1772670390404,0.54308324,2127.6,2126.3,0.55883642]
[1772670390704,0.54308324,2127.6,2126.5,0.55883642]
[1772670391401,0.54308324,2127.6,2126.2,0.55883642]
[1772670394701,0.54308324,2127.6,2126.4,0.55883642]
[1772670395211,0.54308324,2127.6,2126.2,0.55883642]
[1772670396300,2.67770458,2127.5,2126.1,0.00523241]
[1772670396502,2.67770458,2127.5,2126.1,0.56406883]
[1772670396503,0.54308324,2127.4,2126.1,0.56406883]
[1772670397708,0.54308324,2127.4,2126.1,0.00523241]
[1772670398102,0.54308324,2127.4,2124.8,5.8608432]
[1772670398103,0.54308324,2126.9,2125.5,0.55883642]
[1772670398302,0.54308324,2126.7,2125.5,0.55883642]
[1772670398708,0.54308324,2126.6,2124.8,0.55883642]
[1772670399207,0.54738692,2126.6,2124.8,0.5604561]
[1772670401804,0.54738692,2126.6,2125.5,0.55883642]
[1772670401996,0.00430368,2126.6,2125.5,0.55883642]
[1772670402199,0.00430368,2126.6,2125.9,0.55883642]
[1772670402397,0.54738692,2126.6,2125.9,0.55883642]
[1772670404203,0.54738692,2126.6,2125.4,0.55883642]
[1772670405008,0.54738692,2126.6,2125.6,0.55883642]
[1772670405514,0.00430368,2126.6,2125.6,0.55883642]
[1772670405808,0.54738692,2126.6,2125.6,0.55883642]
[1772670408409,0.00430368,2126.6,2125.8,0.55883642]
[1772670408605,0.55195237,2126.6,2125.8,0.55883642]
[1772670409212,0.00430368,2126.6,2125.8,0.55883642]
[1772670410313,0.55195237,2126.6,2125.8,0.55883642]
[1772670411006,0.55195237,2126.6,2125.5,0.54903184]
[1772670412009,0.00430368,2126.6,2125.7,3.23699291]
[1772670412313,0.00430368,2126.6,2125.8,0.54903184]
[1772670413410,0.55195237,2126.6,2125.8,0.54903184]
[1772670413615,0.00430368,2126.6,2125.8,0.54903184]
[1772670417618,0.00430368,2126.6,2126.0,0.54903184]
[1772670419317,0.54764869,2126.9,2126.2,0.54903184]
[1772670419517,0.54764869,2127.3,2126.4,0.54903184]
[1772670420310,0.55371188,2127.3,2126.4,0.00519918]
[1772670420717,0.54764869,2127.1,2126.4,0.00519918]
[1772670421022,0.95436028,2127.0,2126.4,0.00519918]
[1772670421212,0.54764869,2126.9,2126.4,0.00519918]
[1772670422221,0.54764869,2126.8,2125.8,0.54903184]
[1772670422421,0.54764869,2126.8,2125.6,0.54903184]
[1772670422920,0.54764869,2126.6,2125.6,0.54903184]
[1772670424314,0.54764869,2126.6,2125.5,0.54903184]
[1772670425023,0.54764869,2126.5,2125.3,0.54903184]
[1772670425223,0.54764869,2126.3,2125.3,0.54903184]
[1772670425418,0.54764869,2126.1,2125.3,0.54903184]
[1772670426023,0.54764869,2126.1,2125.0,0.23525]
[1772670426221,0.54764869,2126.1,2125.1,0.54903184]
[1772670430629,0.54764869,2126.1,2124.6,7.16088151]
[1772670430630,0.56149145,2125.5,2124.6,0.07681374]
[1772670430933,0.56149145,2125.3,2124.6,0.07681374]
[1772670432436,0.56149145,2125.3,2124.2,2.68796107]
[1772670432632,0.56149145,2125.3,2124.3,0.07454568]
[1772670434031,0.00396786,2125.5,2124.6,0.07643648]
[1772670434532,0.56561894,2125.5,2124.6,0.07643648]
[1772670438734,0.56561894,2125.5,2123.9,5.79029]
[1772670438735,0.56497766,2124.6,2123.5,0.13209324]
[1772670438937,0.56497766,2124.6,2123.2,5.8608432]
[1772670438938,0.56497766,2124.4,2123.1,0.13209324]
[1772670439741,0.56460995,2124.3,2123.1,0.13209324]
[1772670440133,0.56461049,2124.0,2122.6,0.13280864]
[1772670440338,0.56461049,2123.9,2122.6,0.13280864]
[1772670445835,0.00347814,2124.0,2123.1,2.80781538]
[1772670446146,0.57103306,2124.3,2123.4,0.11985431]
[1772670446339,0.57103306,2124.3,2122.9,0.05794882]
[1772670446340,0.57103347,2124.2,2122.9,0.05794882]
[1772670447247,0.57640718,2124.2,2123.1,0.05259653]
[1772670447846,0.00537371,2124.2,2123.3,0.0525803]
[1772670448644,0.00537371,2124.2,2123.5,0.05256352]
[1772670449939,0.5737014,2124.4,2123.5,0.05256352]
[1772670450139,0.56349563,2125.1,2123.7,0.56454417]
[1772670450739,0.56349563,2124.9,2123.7,0.56454417]
[1772670451245,0.56758484,2124.9,2123.7,0.56454417]
[1772670452043,0.56758484,2124.9,2123.9,0.56454417]
[1772670456853,0.56758484,2124.9,2124.1,0.55024208]
[1772670459149,0.56349563,2124.8,2124.1,0.55024208]
[1772670463652,0.56349563,2124.7,2124.1,0.55024208]
[1772670464258,0.56349563,2124.6,2123.9,0.54993483]
[1772670465356,0.56349563,2124.5,2123.9,0.54993483]
[1772670467957,0.56349563,2124.4,2123.9,0.54993483]
[1772670469659,1.17204314,2124.4,2123.9,0.54993483]
[1772670472056,0.59976709,2124.8,2124.0,0.23536]
[1772670472460,0.57014578,2125.3,2124.3,0.50338559]
[1772670472661,0.57014578,2125.3,2124.4,0.56014827]
[1772670473155,0.57014578,2125.3,2124.5,0.56014827]
[1772670473466,0.57400793,2125.3,2124.5,0.56373897]
[1772670478164,0.00386215,2125.3,2124.7,0.56014827]
[1772670479269,0.00386215,2125.3,2124.9,0.56014827]
[1772670480470,0.57014578,2125.9,2124.9,0.56014827]
[1772670480672,0.57014578,2125.7,2124.9,0.56014827]
[1772670481573,0.00478038,2125.7,2125.1,0.56014827]
[1772670481766,0.57492616,2125.7,2125.1,0.56014827]
[1772670482968,14.35254056,2126.6,2125.3,0.56014827]
[1772670482969,0.57014578,2126.2,2125.3,0.56014827]
[1772670483870,0.57403484,2126.2,2125.3,0.56014827]
[1772670484065,0.00388906,2126.2,2125.7,0.56014827]
[1772670484272,0.57014578,2126.6,2125.7,0.56014827]
[1772670484472,0.57014578,2126.6,2126.0,0.56014827]
[1772670484869,0.57014578,2127.2,2126.2,0.56014827]
[1772670485275,0.57014578,2127.2,2126.2,0.56524305]
[1772670485276,0.57463363,2127.2,2126.2,0.56524305]
[1772670487377,0.57463363,2127.2,2126.4,0.56014827]
[1772670487769,0.57014578,2128.0,2127.0,0.23503]
[1772670487969,0.57014578,2128.0,2127.1,0.56014827]
[1772670488675,0.576136,2128.0,2127.1,0.56014827]
[1772670491479,0.576136,2128.0,2126.9,0.56014827]
[1772670491777,0.576136,2128.0,2127.1,0.56014827]
[1772670491978,0.00599022,2128.0,2127.3,0.56014827]
[1772670492571,0.00599022,2128.0,2127.3,6.71114827]
[1772670492777,0.00599022,2128.0,2127.4,0.56014827]
[1772670494278,0.576136,2128.0,2127.5,0.56014827]
[1772670494483,0.576136,2128.0,2126.8,0.56014827]
[1772670494778,0.576136,2128.0,2127.0,0.56014827]
[1772670498876,0.576136,2128.0,2126.8,0.55717219]
[1772670501079,0.576136,2128.0,2126.6,0.55717219]
[1772670502175,0.56899168,2127.9,2126.4,0.55717219]
[1772670510882,0.40498745,2127.8,2126.4,0.55717219]
[1772670511087,0.55540293,2127.8,2126.4,0.55717219]
[1772670511288,0.55540293,2127.7,2126.4,0.55717219]
[1772670512681,0.55540293,2127.5,2126.2,0.57624259]
[1772670514493,0.55540293,2127.3,2126.2,0.57624259]
[1772670516095,0.55540293,2127.3,2126.2,0.00509478]
[1772670516404,0.55540293,2127.3,2126.2,0.57624259]
[1772670516996,0.55540293,2127.3,2126.3,0.57114781]
[1772670522912,0.55540293,2127.3,2126.5,0.57114781]
[1772670523410,3.92638486,2127.8,2126.5,0.57114781]
[1772670523713,0.55540293,2127.6,2126.7,0.57114781]
[1772670524108,0.55540293,2127.8,2126.8,0.57114781]
[1772670525113,0.55540293,2127.5,2126.5,0.57114781]
[1772670525316,0.55540293,2127.2,2126.3,0.57114781]
[1772670527303,0.55540293,2127.5,2126.5,0.57114781]
[1772670528420,3.92638486,2127.9,2126.6,0.57114781]
[1772670528421,0.55540293,2127.7,2126.6,0.57114781]
[1772670530315,0.55540293,2127.7,2126.7,0.58680763]
[1772670532913,0.55540293,2127.7,2126.8,0.82185763]
[1772670533114,0.55540293,2127.7,2126.9,0.58680763]
[1772670533308,0.56345472,2127.9,2127.1,0.58680763]
[1772670533914,0.56345472,2127.9,2126.9,0.58680763]
[1772670535218,0.56345472,2127.9,2127.1,0.58680763]
[1772670536218,0.00599022,2128.0,2127.3,0.58680763]
[1772670536612,5.90585301,2128.6,2127.3,0.58680763]
[1772670536613,0.56345472,2128.3,2127.6,0.58680763]
[1772670536812,0.56345472,2128.5,2127.6,0.58680763]
[1772670537614,0.56793423,2128.5,2127.6,0.58680763]
[1772670541927,0.56793423,2128.5,2127.3,0.58680763]
[1772670544228,0.56345472,2128.4,2127.3,0.58680763]
[1772670548630,0.56345472,2128.4,2127.1,0.58680763]
[1772670550437,0.56345472,2128.1,2127.1,0.58680763]
[1772670555129,0.56345472,2128.1,2127.3,0.58680763]
[1772670555339,0.56345472,2128.4,2127.3,0.58680763]
[1772670555532,0.56345472,2128.4,2127.5,0.58680763]
[1772670556029,0.56793423,2128.5,2127.6,0.58680763]
[1772670557539,0.00447951,2128.5,2127.8,3.2736368]
[1772670557730,0.00447951,2128.5,2127.9,0.58680763]
[1772670557928,0.56793423,2128.5,2127.9,0.58680763]
[1772670560331,0.00447951,2128.5,2127.9,0.58680763]
[1772670562830,0.59172433,2128.5,2127.8,0.0052026]
[1772670563032,0.59172433,2128.5,2127.8,0.55918933]
[1772670563739,0.00447951,2128.5,2127.9,0.55398673]
[1772670564135,0.58724482,2128.7,2127.9,0.55398673]
[1772670565139,0.59102413,2128.7,2127.9,0.55398673]
[1772670566140,0.59102413,2128.7,2127.8,0.0052026]
[1772670567040,0.59102413,2128.7,2127.8,0.61169035]
[1772670570144,0.59102413,2128.7,2127.5,0.60648775]
[1772670570339,0.60712974,2128.6,2127.5,0.60648775]
[1772670570640,0.60712974,2128.5,2127.5,0.60648775]
[1772670571041,0.60712974,2128.5,2127.5,0.61180936]
[1772670571644,0.60712974,2128.3,2127.5,0.61180936]
[1772670580554,0.60712974,2128.1,2127.0,0.23502]
[1772670580853,0.60712974,2128.1,2127.1,0.60648775]
[1772670581045,0.60712974,2127.9,2127.1,0.60648775]
[1772670581653,0.60712974,2128.3,2127.1,0.61203876]
[1772670581850,0.60712974,2128.1,2127.1,0.61203876]
[1772670582556,0.60712974,2128.1,2127.3,0.60648775]
[1772670584453,10.26438486,2128.5,2127.3,0.60648775]
[1772670584657,0.60712974,2128.3,2127.5,0.60648775]
[1772670589056,0.60712974,2128.3,2127.1,7.16643252]
[1772670589057,0.60712974,2128.3,2127.2,0.59917533]
[1772670589652,0.57553892,2128.1,2127.2,0.59917533]
[1772670589857,0.57553892,2128.1,2127.1,0.60472634]
[1772670590158,0.57553892,2127.9,2127.1,0.60472634]
[1772670601468,0.57553892,2127.7,2127.1,0.00555101]
[1772670601666,5.29019735,2127.8,2126.7,7.16088151]
[1772670601667,0.57553892,2127.5,2126.7,0.59917533]
[1772670601863,0.57553892,2127.3,2126.2,7.76005684]
[1772670602164,0.57553892,2127.3,2126.3,0.59917533]
[1772670602364,0.57553892,2127.1,2126.3,0.59917533]
[1772670602564,0.58163208,2127.1,2126.3,0.60339344]
[1772670603870,0.58163208,2127.1,2125.6,6.156]
[1772670603871,0.57553892,2126.9,2125.6,6.156]
[1772670604065,0.00609316,2127.1,2125.7,0.59917533]
[1772670604066,0.57553892,2126.7,2125.7,0.59917533]
[1772670604263,0.57553892,2126.7,2125.3,0.59917533]
[1772670604468,0.57553892,2126.5,2125.3,0.59917533]
[1772670605070,0.57553892,2126.5,2125.3,0.60513298]
[1772670605268,0.57553892,2127.0,2125.5,0.59917533]
[1772670605473,0.57553892,2127.0,2126.1,0.59917533]
[1772670606268,0.57553892,2127.0,2125.7,0.59917533]
[1772670607471,0.00609316,2127.1,2126.1,0.59917533]
[1772670608266,0.58163208,2127.1,2126.1,0.59917533]
[1772670608472,0.58163208,2127.1,2126.3,0.59917533]
[1772670608671,0.58163208,2127.1,2125.7,2.68415397]
[1772670608672,0.58163208,2127.1,2125.8,0.59917533]
[1772670609472,0.58163208,2127.1,2126.0,0.59917533]
[1772670610071,0.58163208,2127.1,2125.3,0.00595765]
[1772670610373,0.57553892,2125.9,2123.9,0.59917533]
[1772670610572,0.57553892,2125.7,2124.9,0.59917533]
[1772670610772,0.54252015,2126.4,2124.9,0.59917533]
[1772670611073,0.54252015,2126.2,2124.9,0.59917533]
[1772670611268,0.54252015,2126.2,2124.9,0.60395477]
[1772670615880,0.54252015,2126.2,2124.9,0.56047026]
[1772670616476,0.54252015,2126.2,2125.1,0.55569082]
[1772670619076,0.54252015,2126.2,2125.2,0.23523]
[1772670619277,2.69024713,2127.1,2125.5,0.56670159]
[1772670619278,0.55076277,2126.8,2125.5,0.56670159]
[1772670621480,0.55076277,2126.8,2125.7,0.56670159]
[1772670625183,0.55076277,2126.8,2125.9,0.56670159]
[1772670625988,0.55076277,2126.8,2126.3,0.56670159]
[1772670626185,0.55076277,2127.0,2126.3,0.56670159]
[1772670627982,0.55076277,2127.0,2126.2,0.23512]
[1772670628286,0.55076277,2127.0,2126.1,0.5699185]
[1772670629783,0.55076277,2127.0,2126.3,0.5699185]
[1772670629989,0.00609316,2127.1,2126.3,0.5699185]
[1772670630393,0.00609316,2127.1,2126.5,0.5699185]
[1772670630688,0.57810739,2127.6,2126.7,0.5699185]
[1772670631587,0.58407889,2127.6,2126.7,0.5699185]
[1772670632684,0.58407889,2127.6,2126.5,0.57564016]
[1772670633487,0.58407889,2127.6,2126.6,0.5699185]
[1772670634489,0.58407889,2127.6,2126.8,0.5699185]
[1772670638292,0.0059715,2127.6,2126.8,0.5699185]
[1772670639995,0.58407889,2127.6,2126.8,0.5699185]
[1772670640690,0.58407889,2127.6,2126.6,0.5699185]
[1772670640893,0.58407889,2127.6,2126.5,0.00572166]
[1772670641091,0.58407889,2127.6,2125.8,7.34977985]
[1772670641092,0.57810739,2127.4,2125.8,0.5699185]
[1772670641297,0.57810739,2127.2,2125.8,0.5699185]
[1772670641892,0.57810739,2127.2,2126.1,0.23513]
[1772670642097,0.57810739,2127.2,2126.1,0.00566115]
[1772670642296,0.57810739,2127.2,2126.1,0.57557965]
[1772670644093,0.57810739,2127.2,2126.4,0.5699185]
[1772670644796,0.57810739,2127.5,2126.4,0.5699185]
[1772670647598,0.57810739,2127.4,2126.3,0.5699185]
[1772670650193,0.57810739,2127.4,2126.4,0.58095751]
[1772670652192,0.57389955,2127.2,2126.4,0.58095751]
[1772670652596,0.57389955,2127.2,2126.2,0.58095751]
[1772670652798,0.57389955,2127.0,2126.1,0.58661866]
[1772670653098,0.57389955,2127.2,2126.2,0.58095751]
[1772670654204,0.57389955,2127.0,2126.2,0.58095751]
[1772670655907,0.57389955,2127.0,2126.1,0.00566115]
[1772670656202,0.57389955,2127.0,2126.1,0.58661866]
[1772670659405,0.57389955,2127.0,2126.3,0.58095751]
[1772670660412,0.57389955,2127.0,2126.1,0.58661866]
[1772670661209,0.57389955,2127.0,2126.2,0.58095751]
[1772670661410,0.57389955,2127.2,2126.3,0.58095751]
[1772670661715,6.05398288,2127.1,2126.3,0.58095751]
[1772670662010,5.48008333,2127.0,2126.3,0.58095751]
[1772670662314,6.05398288,2127.0,2126.3,0.58095751]
[1772670662513,0.57389955,2127.0,2126.3,0.58095751]
[1772670672422,0.57389955,2127.4,2126.7,0.58095751]
[1772670672616,0.57389955,2127.2,2126.7,0.58095751]
[1772670673817,0.57389955,2127.2,2126.5,0.58095751]
[1772670677528,0.57389955,2127.2,2126.3,0.58095751]
[1772670677718,0.57389955,2127.0,2126.1,0.00566115]
[1772670677919,0.57389955,2126.8,2126.1,0.00566115]
[1772670678119,0.57389955,2126.6,2126.1,0.00566115]
[1772670680829,0.57389955,2126.6,2126.1,0.55249067]
[1772670681029,0.56573426,2126.8,2126.1,0.55249067]
[1772670685232,0.56573426,2127.0,2126.2,0.54682952]
[1772670685535,0.56573426,2127.0,2126.3,0.54682952]
[1772670689035,0.59828676,2127.2,2126.5,0.57858792]
[1772670689238,0.59828676,2127.2,2126.6,0.57858792]
[1772670689435,3.93235636,2127.6,2126.6,0.57858792]
[1772670689436,0.59828676,2127.4,2126.6,0.57858792]
[1772670690741,0.60425826,2127.6,2126.8,0.57858792]
[1772670691543,0.60425826,2127.6,2127.0,0.57858792]
[1772670693145,0.0059715,2127.6,2127.0,0.57858792]
[1772670694248,0.60425826,2127.6,2127.0,0.57858792]
[1772670694444,0.60425826,2127.6,2126.8,0.57858792]
[1772670694748,0.60425826,2127.6,2126.6,0.57858792]
[1772670695043,0.60425826,2127.6,2126.4,0.57858792]
[1772670695044,0.59828676,2127.4,2126.4,0.57858792]
[1772670696948,5.47555866,2127.3,2126.4,0.57858792]
[1772670697147,0.59828676,2127.2,2126.4,0.57858792]
[1772670700350,0.59828676,2127.4,2126.4,0.57858792]
[1772670700545,0.59828676,2127.4,2126.6,0.57858792]
[1772670703450,0.59828676,2127.4,2126.7,0.57858792]
[1772670704549,0.0059715,2127.6,2127.0,0.57858792]
[1772670704550,0.60425826,2127.6,2127.0,0.57858792]
[1772670705353,5.90585301,2128.3,2127.5,0.57858792]
[1772670705354,0.59828676,2128.3,2127.5,0.57858792]
[1772670706258,0.60299083,2128.3,2127.5,0.57858792]
[1772670706861,0.60299083,2128.3,2127.1,0.57858792]
[1772670710060,0.60299083,2128.3,2126.9,0.8005657]
[1772670710360,0.5916414,2128.1,2127.0,0.5655257]
[1772670711453,0.5916414,2128.1,2127.2,0.5655257]
[1772670713761,0.59634547,2128.3,2127.4,0.5655257]
[1772670715964,0.59634547,2128.3,2127.0,0.5655257]
[1772670718168,0.59634547,2128.3,2127.2,0.5655257]
[1772670718370,0.59634547,2128.3,2127.4,0.5655257]
[1772670723473,0.59634547,2128.3,2127.0,0.5655257]
[1772670729077,0.5916414,2128.1,2127.0,0.5655257]
[1772670733169,0.5916414,2127.9,2127.0,0.5655257]
[1772670734275,0.5916414,2128.1,2127.2,0.5655257]
[1772670734480,3.91291569,2128.3,2127.2,0.5655257]
[1772670734481,0.5916414,2128.0,2127.2,0.5655257]
[1772670735477,0.5916414,2128.0,2127.3,0.235]
[1772670735681,0.5916414,2128.0,2127.4,0.5655257]
[1772670735884,0.5916414,2128.2,2127.4,0.5655257]
[1772670736885,0.5916414,2128.0,2127.4,0.5655257]
[1772670743584,0.5916414,2128.0,2127.2,0.54132859]
[1772670745791,0.5916414,2128.0,2127.1,0.54132859]
[1772670749187,0.56523458,2127.8,2126.9,7.34977985]
[1772670749391,0.56523458,2127.6,2126.8,0.5809573]
[1772670749593,0.56523458,2127.4,2126.8,0.5809573]
[1772670751894,0.56523458,2127.4,2126.6,0.5809573]
[1772670758895,0.56523458,2127.8,2126.8,0.5809573]
[1772670759296,0.56523458,2127.8,2126.9,0.5809573]
[1772670760201,0.56523458,2127.8,2127.0,0.5809573]
[1772670763298,0.56523458,2128.1,2127.1,0.23502]
[1772670763503,0.56523458,2127.9,2127.2,0.5809573]
[1772670763705,0.56523458,2128.2,2127.2,0.5809573]
[1772670764802,0.56523458,2128.2,2127.1,0.23502]
[1772670765106,0.56523458,2128.2,2127.2,0.5809573]
[1772670765306,0.56523458,2128.2,2126.9,0.5809573]
[1772670767007,0.56523458,2128.0,2126.9,0.5809573]
[1772670767308,0.56523458,2127.8,2126.9,0.5809573]
[1772670770512,0.56523458,2127.8,2127.1,2.22834109]
[1772670770708,0.56523458,2127.8,2127.2,0.57114598]
[1772670771907,0.56523458,2127.8,2127.1,2.22834109]
[1772670772506,0.56523458,2127.8,2127.2,0.57114598]
[1772670773407,0.56523458,2127.8,2126.9,2.22834109]
[1772670773408,0.59624669,2127.7,2126.9,2.22834109]
[1772670773809,0.59624669,2127.7,2127.0,0.57114598]
[1772670774110,0.59624669,2127.7,2127.2,0.57114598]
[1772670775912,0.59624669,2127.7,2127.1,1.65719511]
[1772670776108,0.59624669,2127.6,2126.7,2.22834109]
[1772670776508,0.59624669,2127.6,2127.0,0.57114598]
[1772670777207,0.59624669,2127.6,2127.2,0.57114598]
[1772670777400,0.39561396,2127.6,2127.2,0.57114598]
[1772670778606,0.59624669,2127.7,2127.2,0.57114598]
[1772670780412,0.59624669,2127.8,2127.4,0.57114598]
[1772670781712,0.59624669,2127.8,2127.0,0.57114598]